Cogmind - Beta 14 @@@ ROGUE MODE // 2024.09.28 @ 03:04:47 Player: RrQq Result: Destroyed by D-53 Grenadier with Mini Grenade Launcher Performance ------------- Evolutions (0) 0 Regions Visited (2) 400 Robots Destroyed (35) 175 Value Destroyed (672) 672 Prototype IDs (2) 40 Alien Tech Used (0) 0 Bonus (0) 0 TOTAL SCORE: 1287 Bonus ------- None Cogmind --------- Core Integrity 0/250 Matter 299/300 Energy 89/100 System Corruption 4% Temperature Cool (70) Movement Core (1500) Ox29 Location -10/Mines Parts ------- > --- POWER (1) -------- (None) > --- PROPULSION (2) --- (None) > --- UTILITY (2) ------ Improved Heat Sink Huge Storage Unit > --- WEAPON (2) ------- Particle Gun Advanced Beam Cannon > --- INVENTORY (25) --- Ion Engine Light Nuclear Core Light Treads Light Treads Wheel Improved Heat Sink Huge Storage Unit Large Matter Pod (150) Medium Armor Plating Medium Armor Plating Medium Armor Plating Advanced Beam Cannon Advanced Beam Cannon Assault Rifle Mining Claw Peak State ------------ > --- POWER ------------ Ion Engine > --- PROPULSION ------- Light Treads Light Treads > --- UTILITY ---------- Improved Heat Sink Huge Storage Unit > --- WEAPON ----------- Particle Gun Advanced Beam Cannon > --- INVENTORY -------- Ion Engine Light Nuclear Core Light Treads Light Treads Wheel Improved Heat Sink Huge Storage Unit Large Matter Pod Medium Armor Plating Medium Armor Plating Medium Armor Plating Advanced Beam Cannon Advanced Beam Cannon Assault Rifle Mining Claw [Rating: 14] Favorites ----------- Power Ion Engine Engine Ion Engine Propulsion Light Treads Treads Light Treads Leg Aluminum Leg Utility Improved Heat Sink Device Improved Heat Sink Storage Huge Storage Unit Protection Medium Armor Plating Weapon Assault Rifle Energy Gun Particle Gun Energy Cannon Advanced Beam Cannon Ballistic Gun Assault Rifle Build | -11 -10 -10 ------- Run | Yrd Mat Min Slots Evolved . | . . . Power . | . . . Propulsion . | . . . Utility . | . . . Weapon . | . . . Parts Attached 26 | 4 19 3 Power 2 | . 2 . Engine 2 | . 2 . Core . | . . . Reactor . | . . . Propulsion 7 | 2 5 . Treads 7 | 2 5 . Leg . | . . . Wheel . | . . . Hover . | . . . Flight . | . . . Utility 9 | 1 7 1 Device 4 | 1 2 1 Storage 2 | . 2 . Processor . | . . . Hackware . | . . . Protection 3 | . 3 . Artifact . | . . . Weapon 8 | 1 5 2 Energy Gun 2 | . 1 1 Energy Cannon 2 | . 1 1 Ballistic Gun 4 | 1 3 . Ballistic Cannon . | . . . Launcher . | . . . Special Weapon . | . . . Impact Weapon . | . . . Slashing Weapon . | . . . Piercing Weapon . | . . . Special Melee Weapon . | . . . Unidentified Prototypes 1 | . 1 . Parts Lost 6 | . 1 5 Power 2 | . 1 1 Propulsion 2 | . . 2 Utility . | . . . Weapon 2 | . . 2 Highest Loss Streak 5 | . 1 5 To Critical Strikes . | . . . Average Slot Usage (%) 99 | . 99 100 Engine 13 | . 13 14 Treads 27 | . 27 28 Device 10 | . 9 14 Storage 14 | . 14 14 Protection 3 | . 4 . Energy Gun 9 | . 8 14 Ballistic Gun 17 | . 18 13 Peak Build Rating 14 | 9 12 14 Average Rating 11 | 6 10 12 On Entrance 9 | 6 9 12 Naked Turns . | . . . Heaviest Build 92 | 12 91 92 Greatest Support 40 | 40 40 40 Greatest Overweight (x) 2 | . 2 2 Average Overweight (x) . | . . 2 Largest Inventory Capacity 25 | 8 25 25 Average Capacity 17 | 8 15 25 Most Carried 18 | 6 17 18 Average Carried 12 | 3 11 16 Final Capacity 25 | 8 25 25 Final Carried 16 | 2 16 15 Class Distribution -------------------- 100% | Mutant Dominant Class ---------------- Mutant | -10/Materials Mutant | -10/Mines Resources | -11 -10 -10 ----------- Run | Yrd Mat Min Matter Collected 1034 | 250 748 36 Remotely . | . . . Salvage Created 1095 | 118 909 68 Parts 85 | 6 72 7 Haulers Intercepted 2 | . 2 . Recyclers Shooed 4 | 1 3 . Parts Field Recycled . | . . . Retrieved Matter . | . . . Parts Self-Destructed . | . . . Prevented . | . . . Kills | -11 -10 -10 ------- Run | Yrd Mat Min Combat Hostiles Destroyed 21 | . 19 2 Guns 20 | . 18 2 Cannons 1 | . 1 . Classes Destroyed 8 | 2 6 . Worker 6 | . 6 . Builder 1 | . 1 . Tunneler 1 | 1 . . Hauler 2 | . 2 . Recycler 1 | 1 . . Watcher 3 | . 3 . Swarmer 6 | . 6 . Grunt 15 | . 13 2 Best Kill Streak 6 | 2 6 2 Combat Bots Only 4 | . 4 2 Max Kills in Single Turn 2 | 1 2 1 Gunslinging 1 | . 1 . Exploded . | . . . Melee . | . . . Uniques/NPCs Destroyed . | . . . Combat | -11 -10 -10 -------- Run | Yrd Mat Min Hostile Shots Fired 114 | . 93 21 Missed 34 | . 30 4 Damage Taken 1350 | . 731 619 Core 262 | . 110 152 Absorbed by Shields . | . . . Regen/Repaired (Parts) 246 | . 246 . Core Remaining (%) 100 | 100 . . Volleys Fired 94 | 5 78 11 Largest 2 | 2 2 2 Hottest 133 | 40 88 133 Shots Fired 189 | 10 158 21 Gun 181 | 10 153 18 Cannon 8 | . 5 3 Launcher . | . . . Special . | . . . Kinetic 137 | 10 122 5 Thermal 52 | . 36 16 Explosive . | . . . Electromagnetic . | . . . Robot Hit Streak 8 | 4 8 7 Robot Miss Streak 6 | 1 6 1 Penetration Max . | . . . Secondary Targets 4 | . 3 1 Max Gunslinging Chain 1 | . 1 1 Shots Hit Robots 118 | 8 93 17 Core Hits 60 | 3 50 7 Critical Kills . | . . . Critical Parts Destroyed 2 | . 2 . Critical Strikes 2 | . 2 . Destroy 2 | . 2 . Melee Attacks . | . . . Impact . | . . . Slashing . | . . . Piercing . | . . . Sneak Attacks . | . . . Combat Hostiles . | . . . Follow-up Attacks . | . . . Damage Inflicted 1676 | 90 1315 271 Guns 1595 | 90 1275 230 Cannons 81 | . 40 41 Explosions . | . . . Melee . | . . . Ramming . | . . . Kinetic 1174 | 90 1026 58 Thermal 502 | . 289 213 Explosive . | . . . Electromagnetic . | . . . Impact . | . . . Slashing . | . . . Piercing . | . . . Highest Corruption 4 | . 4 4 Average Corruption 3 | . 3 4 Corruption Purged . | . . . Corruption Blocked . | . . . Effects 56 | . 46 10 Message Errors 15 | . 12 3 Matter Fused 12 | . 10 2 Heat Flow Errors 4 | . 3 1 Energy Discharges 9 | . 9 . Data Loss (minor) 5 | . 3 2 Data Loss (major) 4 | . 3 1 Misfires 4 | . 4 . Alerts 1 | . 1 . Weapon Failures 2 | . 1 1 Overload Shots . | . . . Overflow Damage . | . . . Projectiles . | . . . Explosions . | . . . Melee . | . . . Knockbacks . | . . . Impact . | . . . Kinetic . | . . . Secondary . | . . . Self-Inflicted Damage . | . . . Shots . | . . . Rammed . | . . . Targets Rammed . | . . . Kicked . | . . . Crushed . | . . . Highest Temperature 208 | . 208 159 Average Temperature 49 | . 49 49 Received Heat Transfer 369 | . 348 21 Siege Activations . | . . . Robots Corrupted . | . . . Combat Hostiles . | . . . Parts Fried . | . . . Impact Corruptions . | . . . Robots Melted . | . . . Combat Hostiles . | . . . Parts Melted . | . . . Heat Transferred 1147 | . 666 481 Parts Sabotaged . | . . . Parts Stolen . | . . . Parts Stripped . | . . . Power Chain Reactions . | . . . Alert | -11 -10 -10 ------- Run | Yrd Mat Min Peak Influence 247 | 10 247 70 Initial 30 | . 6 30 Average 99 | 5 110 50 Maximum Alert Level 1 | . 1 . Low Security (%) 98 | 100 98 100 Level 1 1 | . 1 . Level 2 . | . . . Level 3 . | . . . Level 4 . | . . . Level 5 . | . . . High Security . | . . . Max Security . | . . . Squads Dispatched 4 | . 4 . Investigation 4 | . 4 . Extermination . | . . . Reinforcement . | . . . Assault . | . . . Garrison . | . . . Intercept . | . . . Searches Triggered . | . . . Construction Impeded . | . . . Haulers Reinforced . | . . . Active Scanning Responses . | . . . Cargo Convoy Interrupts . | . . . Stealth | -11 -10 -10 --------- Run | Yrd Mat Min Distress Signals 3 | . 3 . Communications Jammed . | . . . Distress Signals . | . . . Times Spotted 34 | . 27 7 Peak Tracking Total 6 | . 6 3 Tactical Retreats . | . . . Traps | -11 -10 -10 ------- Run | Yrd Mat Min Traps Triggered 6 | . 6 . Indirectly . | . . . Trap Hack Attempts . | . . . Triggered . | . . . Disarmed . | . . . Reprogrammed . | . . . Reused . | . . . Traps Extracted . | . . . Installed . | . . . Triggered . | . . . Machines | -11 -10 -10 ---------- Run | Yrd Mat Min Machines Disabled . | . . . Max in Single Turn . | . . . Machines Repaired . | . . . Machines Dismantled . | . . . Machines Sabotaged . | . . . Overloaded Fab Kills . | . . . Hacking | -11 -10 -10 --------- Run | Yrd Mat Min Machines Accessed 11 | . 11 . Terminals 8 | . 8 . Fabricators . | . . . Repair Stations 1 | . 1 . Recycling Units 2 | . 2 . Scanalyzers . | . . . Garrison Access . | . . . Total Hacks 28 | . 28 . Successful 15 | . 15 . Failed 13 | . 13 . Catastrophic . | . . . Database Lockouts . | . . . Manual 18 | . 18 . Terminals 20 | . 20 . Fabricators . | . . . Repair Stations 5 | . 5 . Recycling Units 3 | . 3 . Scanalyzers . | . . . Garrison Access . | . . . Terminal Hacks 4 | . 4 . Robot Analysis 3 | . 3 . Prototype ID Bank 1 | . 1 . Fabricator Hacks . | . . . Repair Station Hacks 4 | . 4 . Scan Component 2 | . 2 . Repair 2 | . 2 . Recycling Unit Hacks . | . . . Scanalyzer . | . . . Garrison Access Hacks . | . . . Unauthorized Hacks 7 | . 7 . Terminals 5 | . 5 . Botnet 5 | . 5 . Fabricators . | . . . Repair Stations . | . . . Recycling Units 2 | . 2 . Tunnel 2 | . 2 . Scanalyzers . | . . . Garrison Access . | . . . Data Cores Recovered . | . . . Used . | . . . Hacking Detections 10 | . 10 . Full Trace Events 1 | . 1 . Feedback Events . | . . . Feedback Blocked . | . . . Robot Schematics Acquired . | . . . Robots Built . | . . . Authchips . | . . . Time . | . . . Total Robot Build Rating . | . . . Part Schematics Acquired . | . . . Parts Built . | . . . Authchips . | . . . Time . | . . . Total Part Build Rating . | . . . Parts Repaired 2 | . 2 . Time 52 | . 52 . Parts Recycled . | . . . Recycled Matter . | . . . Retrieved Matter . | . . . Retrieved Components . | . . . Parts Scanalyzed . | . . . Part Schematics Acquired . | . . . Parts Damaged . | . . . Bothacking | -11 -10 -10 ------------ Run | Yrd Mat Min Used RIF Installer . | . . . Robots Hacked . | . . . Non-combat . | . . . Combat . | . . . Robot Hacks Applied . | . . . Relay Couplers Released . | . . . Fabnet Peak Effective % . | . . . Robots Rewired . | . . . Allies Hacked . | . . . Hacks Repelled . | . . . Allies | -11 -10 -10 -------- Run | Yrd Mat Min Total Allies 1 | . . 1 Largest Group 1 | . . 1 Highest-Rated Group 31 | . . 31 Highest-Rated Ally 31 | . . 31 Total Orders . | . . . Ally Attacks 6 | . . 6 Total Damage 42 | . . 42 Kills . | . . . Allies Corrupted . | . . . Allies Melted . | . . . Intel | -11 -10 -10 ------- Run | Yrd Mat Min Robot Analysis Total 3 | . 3 . Derelict Logs Recovered 2 | . . 2 Drone Launches . | . . . Drone Recoveries . | . . . Exploration | -11 -10 -10 ------------- Run | Yrd Mat Min Turns Passed 3278 | 31 2696 551 Spaces Moved 1278 | 7 1121 150 Core . | . . . Treads 1278 | 7 1121 150 Legs . | . . . Wheels . | . . . Hover . | . . . Flight . | . . . Fastest Speed 160 | 160 160 320 Average Speed 221 | 160 208 320 Slowest Speed 320 | 160 320 320 Overloaded Moves . | . . . Propulsion Burnouts . | . . . Robots Hopped . | . . . Cave-ins Triggered . | . . . Exploration Rate (%) 44 | 2 99 33 Regions Visited 2 Branch Regions 1 Pre-discovered Areas 3 | . 2 1 Known Exits Taken . | . . . Unknown Exits Taken 2 | 1 1 . Scrap Searched 1 | . . 1 Spaces Dug . | . . . Terrain Destroyed 1 | . . 1 Melee . | . . . Projectile 1 | . . 1 AOE . | . . . Terrain Rammed . | . . . Walls Destroyed . | . . . Machines Disabled . | . . . Actions | -11 -10 -10 --------- Run | Yrd Mat Min Total 1541 | 19 1323 199 Wait 112 | . 79 33 Move 1276 | 6 1120 150 Hop . | . . . Pick Up 19 | . 18 1 Fast Attach 12 | 1 11 . Attach 5 | 3 . 2 Detach . | . . . Swap 9 | . 8 1 Drop 14 | 4 9 1 Fire 94 | 5 78 11 Melee . | . . . Ram . | . . . Kick . | . . . Crush . | . . . Escape Stasis . | . . . Rewire . | . . . Trap . | . . . Miscellaneous . | . . . Route ------- -11/Scrapyard -10/Materials (discovered 5 exits: *Mat x3 / [*Min x2]) -10/Mines (discovered 1 exit: Mat) History --------- Turn | Location | Event 12 | -11/Scrapyard | Discovered new exit (range 2) 32 | -11/Scrapyard | Entered Materials 328 | -10/Materials | Build established: Mutant 401 | -10/Materials | Discovered new exit (range 6) 733 | -10/Materials | Discovered new exit (range 12) 1349 | -10/Materials | Discovered new exit (range 15) 1407 | -10/Materials | Repaired Lgt. Treads 1435 | -10/Materials | Repaired Lgt. Treads 1564 | -10/Materials | Discovered new exit (range 16) 1794 | -10/Materials | Discovered new exit (range 16) 2728 | -10/Materials | Entered Mines 2735 | -10/Mines | Escorted by a lone wolf Derelict 2755 | -10/Mines | Learned location of Storage (-7) 2808 | -10/Mines | Identified exit to Materials 3006 | -10/Mines | Learned Materials stockpile data 3186 | -10/Mines | Assembled infested the area 3191 | -10/Mines | Assisted by a Guerilla fighting off Assembled 3271 | -10/Mines | Core integrity fell below 50% 3278 | -10/Mines | Core integrity fell below 20% 3279 | -10/Mines | Destroyed by D-53 Grenadier with Mini Grenade Launcher Last Messages --------------- 03191_ A derelict emerges from the shadows: "You need to get out of here! I've been tracking a group of Assembled to figure out where they're coming from, and they're closing on this area, come on!" 03240_ System corrupted: Heat flow error (+191). 03246_ IT-MJO(g) shuts down. 03248_ IT-MJO(g) destroyed. 03249_ System corrupted: Assault Rifle jammed. 03249_ Destroyed Asb. F-torch. 03251_ Assault Rifle destroyed. 03255_ as-99967 destroyed. 03255_ as-77900 destroyed. 03269_ The unstable cave ceiling collapses. 03269_ Particle Gun destroyed. 03270_ The unstable cave ceiling collapses. 03273_ Lgt. Treads destroyed. 03275_ Ion Engine destroyed. 03276_ The unstable cave ceiling collapses. 03277_ D-53 Grenadier heat damages Lgt. Deuterium Engine. 03279_ System corrupted: Component data lost. 03279_ The unstable cave ceiling collapses. Map ----- +----------------------------------------------------+ | | | | | | | | | | | | | | | | | | | | | | | ?????????????????????????????????????????????????? | | ?????????????????????????????????????????????????? | | ?????????????????????????????????????????????????? | | ?????????????????????????????????????????????????? | | ?????????????????????????????????????????????????? | | ?????????????????????????????????????? ????????? | | ????????????????????????????????###??# ????????? | | ????????????????????#######????# ### ?????????? | | ????????????????????# ###?? ??????????? | | ???????????????????## ##? #???????????? | | ???????????????????# #? #????????????? | | ???????????????????# #? #????????????? | | ???????????????????# ### #????????????? | | ???????????????????# # #????????????? | | ???????????????????# @ % #?????????????? | | ???????????????????## #?????????????? | | ????????######??????# % #????????????? | | ????????? #??????## = d ##????????????? | | ????????? #???????## ## d #?????????????? | | ?????????# #?????????#######?# #????????????? | | ?????????# ##?????????????????# #????????????? | | ?????????# #??????????????????#% #????????????? | | ?????????# #???????????????#### = ##????????????? | | ?????????# ################# ##?????????????? | | ?????????# ##?????????????? | | ?????????################# ##????????????? | | ?????????????????????????# #????????????? | | ????????????????????????## #????????????? | | ???????????????????????## ### ##????????????? | | ??????????????????????## ##?#####?????????????? | | ??????????????????????# ##????????????????????? | | ??????????????????????# ##?????????????????????? | | ?????????????????????## #??????????????????????? | | ??????????####??????## ##??????????????????????? | | ?????????## ##????## ##???????????????????????? | | ?????????# ###### ##????????????????????????? | | ?????????# ##?????????????????????????? | | ?????????## ##??????????????????????????? | | ??????????## ## ##???????????????????????????? | +----------------------------------------------------+ Best States ------------- Heat Dissipation 39 Energy Generation 10 Energy Capacity 250 Matter Stores 300 Matter Capacity 300 Sight Range 16 Terrain Scan Range 16 Terrain Scan Density 10 Armor Coverage 225 Evasion (%) 40 Recoil Reduction 2 Item Schematics ----------------- None Robot Schematics ------------------ None Fabricated ------------ Nothing Alien Tech Used ----------------- None Achievements -------------- None Challenges ------------ None Game ------ Seed CargoRestorationCore Manual? 0 Play Time 00:14:30 Cumulative 160.8 hours Start 2024.09.28 @ 02:51:55 End 2024.09.28 @ 03:04:47 Sessions 1 Manual Loads 0 Difficulty Rogue Special Mode None Game No. 208 Rogue 208 Adventurer 0 Explorer 0 Win Type - Total 1 Types 1/0/0/0/0/0/0/0/0 Lore% 52 Gallery% 62 Achievement% 49 Wizard Run 0 Options --------- Layout 0 ASCII 0 Keyboard 0 Movement Mouse Keybinds 1 Fullscreen 1 Font 18/Terminus Map View 76x50 Zoom Use 0% Tactical HUD 1 Map Filters NONE Filters NONE Steam 0 RUN: 44ddbc9c-9440-4dcc-9ad8-af3944c7d36d